[Event "*** Qualifier 2: Titled Tuesday 3|2 Blitz"]
[Site "Chess.com"]
[Date "2017.04.11"]
[Round "7"]
[White "Ginger_GM"]
[Black "Grebeniuk-S"]
[Result "1-0"]
[WhiteElo "2445"]
[BlackElo "2394"]
[TimeControl "180+2"]
[EndTime "14:37:52 PDT"]
[Termination "Ginger_GM won by resignation"]

1. e4 {[%clk 0:03:02]} 1... d5 {[%clk 0:02:58.9]} 2. exd5 {[%clk 0:03:01.4]}
2... Qxd5 {[%clk 0:03:00.8]} 3. Nc3 {[%clk 0:03:02.1]} 3... Qa5 {[%clk
0:03:02.1]} 4. Bc4 {[%clk 0:03:02.3]} 4... Nf6 {[%clk 0:03:02.7]} 5. d3 {[%clk
0:03:02.9]} 5... c6 {[%clk 0:03:00.7]} 6. Bd2 {[%clk 0:03:03]} 6... Qc7 {[%clk
0:03:00.6]} 7. Qe2 {[%clk 0:02:56.4]} 7... g6 {[%clk 0:02:44.6]} 8. Nf3 {[%clk
0:02:47.6]} 8... Bg7 {[%clk 0:02:45.5]} 9. h4 {[%clk 0:02:40.5]} 9... Bg4 {[%clk
0:02:43.9]} 10. Bxf7+ {[%clk 0:02:33.1]} 10... Kxf7 {[%clk 0:01:58.4]} 11. Ne5+
{[%clk 0:02:33]} 11... Qxe5 {[%clk 0:01:40.1]} 12. Qxe5 {[%clk 0:02:32]} 12...
Rd8 {[%clk 0:01:42]} 13. f3 {[%clk 0:02:28.4]} 13... Nbd7 {[%clk 0:01:39.6]} 14.
Qe2 {[%clk 0:02:26.1]} 14... Bf5 {[%clk 0:01:37.8]} 15. g4 {[%clk 0:02:26.6]}
15... Be6 {[%clk 0:01:39]} 16. h5 {[%clk 0:02:27.3]} 16... gxh5 {[%clk
0:01:38.4]} 17. g5 {[%clk 0:02:20.8]} 17... Nd5 {[%clk 0:01:39.6]} 18. Rxh5
{[%clk 0:02:20]} 18... Bf5 {[%clk 0:01:38.2]} 19. O-O-O {[%clk 0:02:11.5]} 19...
Bg6 {[%clk 0:01:35.4]} 20. Rh4 {[%clk 0:02:10.6]} 20... Nc5 {[%clk 0:01:35.8]}
21. Re1 {[%clk 0:02:07.4]} 21... Kg8 {[%clk 0:01:21.2]} 22. Ne4 {[%clk
0:02:03.1]} 22... Ne6 {[%clk 0:01:05.9]} 23. Nf6+ {[%clk 0:02:00.8]} 23... Bxf6
{[%clk 0:01:02.7]} 24. Qxe6+ {[%clk 0:01:49.6]} 24... Bf7 {[%clk 0:01:03.2]} 25.
Qh3 {[%clk 0:01:50.1]} 25... Bg7 {[%clk 0:00:50.8]} 26. Rxh7 {[%clk 0:01:44.5]}
26... Bg6 {[%clk 0:00:51.7]} 27. Qe6+ {[%clk 0:01:32.4]} 27... Bf7 {[%clk
0:00:45.2]} 28. Rxg7+ {[%clk 0:01:32.1]} 28... Kxg7 {[%clk 0:00:45.8]} 29. Qh6+
{[%clk 0:01:33.7]} 29... Kg8 {[%clk 0:00:45.8]} 30. Rh1 {[%clk 0:01:35.3]} 1-0

[Event "*** Qualifier 2: Titled Tuesday 3|2 Blitz"]
[Site "Chess.com"]
[Date "2017.04.11"]
[Round "7"]
[White "aa175"]
[Black "nickmatta"]
[Result "0-1"]
[WhiteElo "1865"]
[BlackElo "2283"]
[TimeControl "180+2"]
[EndTime "14:38:19 PDT"]
[Termination "nickmatta won by checkmate"]

1. e4 {[%clk 0:03:02]} 1... c5 {[%clk 0:03:00.9]} 2. Nf3 {[%clk 0:03:03]} 2...
d6 {[%clk 0:03:02.1]} 3. d4 {[%clk 0:03:04.5]} 3... cxd4 {[%clk 0:03:04]} 4.
Nxd4 {[%clk 0:03:04.9]} 4... Nf6 {[%clk 0:03:05.3]} 5. Nc3 {[%clk 0:03:06.3]}
5... a6 {[%clk 0:03:06.3]} 6. Be3 {[%clk 0:03:07.4]} 6... e5 {[%clk 0:03:07.1]}
7. Nb3 {[%clk 0:03:07.9]} 7... Be6 {[%clk 0:03:08.3]} 8. Nd5 {[%clk 0:03:03.7]}
8... Nbd7 {[%clk 0:02:56.1]} 9. a4 {[%clk 0:02:58.1]} 9... Nxe4 {[%clk
0:02:56.9]} 10. Bc4 {[%clk 0:02:47.6]} 10... Rc8 {[%clk 0:02:56.5]} 11. Qe2
{[%clk 0:02:32.7]} 11... Nef6 {[%clk 0:02:31.8]} 12. Rd1 {[%clk 0:02:13.5]}
12... Rxc4 {[%clk 0:02:23.9]} 13. Qxc4 {[%clk 0:02:12.7]} 13... Nxd5 {[%clk
0:02:24.4]} 14. Rxd5 {[%clk 0:02:11.6]} 14... Nf6 {[%clk 0:02:25.7]} 15. Na5
{[%clk 0:00:42.7]} 15... Bxd5 {[%clk 0:02:18.2]} 16. Qd3 {[%clk 0:00:32.2]}
16... Qxa5+ {[%clk 0:02:17.2]} 17. Bd2 {[%clk 0:00:33.4]} 17... Qxa4 {[%clk
0:02:14.3]} 18. c4 {[%clk 0:00:35.3]} 18... Qxc4 {[%clk 0:02:15.1]} 19. Qa3
{[%clk 0:00:35.4]} 19... Bxg2 {[%clk 0:02:10.8]} 20. Rg1 {[%clk 0:00:34.7]}
20... Bf3 {[%clk 0:02:11.7]} 21. Qxf3 {[%clk 0:00:34.6]} 21... Qe4+ {[%clk
0:02:13]} 22. Qe3 {[%clk 0:00:34.3]} 22... Qxe3+ {[%clk 0:02:14.1]} 23. Bxe3
{[%clk 0:00:36.2]} 23... g6 {[%clk 0:02:14]} 24. Ke2 {[%clk 0:00:38.1]} 24...
Bg7 {[%clk 0:02:15.1]} 25. Rc1 {[%clk 0:00:37.9]} 25... Kd7 {[%clk 0:02:15.2]}
26. Rd1 {[%clk 0:00:36.1]} 26... d5 {[%clk 0:02:15.1]} 27. Bg5 {[%clk
0:00:31.1]} 27... d4 {[%clk 0:02:14.3]} 28. f4 {[%clk 0:00:30.5]} 28... Ne4
{[%clk 0:02:15.2]} 29. Bh4 {[%clk 0:00:23.9]} 29... exf4 {[%clk 0:02:14.8]} 30.
Kf3 {[%clk 0:00:24.7]} 30... Nd6 {[%clk 0:02:13.7]} 31. Kxf4 {[%clk 0:00:22.9]}
31... Re8 {[%clk 0:02:13]} 32. Bf2 {[%clk 0:00:23.4]} 32... Re4+ {[%clk
0:02:14]} 33. Kf3 {[%clk 0:00:25.3]} 33... f5 {[%clk 0:02:14.9]} 34. Bg3 {[%clk
0:00:26.1]} 34... Re3+ {[%clk 0:02:15.6]} 35. Kf2 {[%clk 0:00:26.9]} 35... Ne4+
{[%clk 0:02:17.3]} 36. Kg2 {[%clk 0:00:27.4]} 36... Nxg3 {[%clk 0:02:19.2]} 37.
hxg3 {[%clk 0:00:29.2]} 37... Rb3 {[%clk 0:02:20.8]} 38. Rd2 {[%clk 0:00:30.2]}
38... d3 {[%clk 0:02:22.3]} 39. Kf3 {[%clk 0:00:30.8]} 39... Bxb2 {[%clk
0:02:22.8]} 40. Ke3 {[%clk 0:00:32.7]} 40... Bc1 {[%clk 0:02:23.8]} 41. g4
{[%clk 0:00:32.9]} 41... Rb2 {[%clk 0:02:24.6]} 42. gxf5 {[%clk 0:00:32]} 42...
Bxd2+ {[%clk 0:02:25]} 43. Kxd3 {[%clk 0:00:32.8]} 43... gxf5 {[%clk 0:02:26.4]}
44. Kd4 {[%clk 0:00:32.6]} 44... Bf4 {[%clk 0:02:26.9]} 45. Kc3 {[%clk
0:00:34.5]} 45... Re2 {[%clk 0:02:27.6]} 46. Kd3 {[%clk 0:00:35.7]} 46... Re4
{[%clk 0:02:28.6]} 47. Kc3 {[%clk 0:00:36.5]} 47... Bb8 {[%clk 0:02:29.8]} 48.
Kd3 {[%clk 0:00:38.4]} 48... Kd6 {[%clk 0:02:31.1]} 49. Kc3 {[%clk 0:00:40.3]}
49... Kd5 {[%clk 0:02:32.5]} 50. Kd3 {[%clk 0:00:42.2]} 50... Ke5 {[%clk
0:02:32]} 51. Kc3 {[%clk 0:00:44.1]} 51... Rd4 {[%clk 0:02:33.5]} 52. Kb3 {[%clk
0:00:44.9]} 52... Kd5 {[%clk 0:02:35]} 53. Kc2 {[%clk 0:00:46.8]} 53... Kc4
{[%clk 0:02:36]} 54. Kb2 {[%clk 0:00:47.6]} 54... Rd3 {[%clk 0:02:37]} 55. Kc2
{[%clk 0:00:49.5]} 55... Kd4 {[%clk 0:02:38.4]} 56. Kb2 {[%clk 0:00:50.2]} 56...
Rc3 {[%clk 0:02:40]} 57. Kb1 {[%clk 0:00:50.9]} 57... Kc4 {[%clk 0:02:40.3]} 58.
Kb2 {[%clk 0:00:52.8]} 58... Kb4 {[%clk 0:02:41.9]} 59. Kb1 {[%clk 0:00:54.7]}
59... Kb3 {[%clk 0:02:43.2]} 60. Ka1 {[%clk 0:00:56.3]} 60... Rc1# {[%clk
0:02:45.1]} 0-1

[Event "*** Qualifier 2: Titled Tuesday 3|2 Blitz"]
[Site "Chess.com"]
[Date "2017.04.11"]
[Round "7"]
[White "tigra"]
[Black "evgenyermolaev"]
[Result "1-0"]
[WhiteElo "2616"]
[BlackElo "2370"]
[TimeControl "180+2"]
[EndTime "14:38:34 PDT"]
[Termination "tigra won by resignation"]

1. e4 {[%clk 0:03:02]} 1... c5 {[%clk 0:02:59]} 2. Nf3 {[%clk 0:03:02.5]} 2...
d6 {[%clk 0:03:00]} 3. Bb5+ {[%clk 0:03:03.9]} 3... Nd7 {[%clk 0:03:00.4]} 4. c3
{[%clk 0:03:04.2]} 4... a6 {[%clk 0:03:00]} 5. Ba4 {[%clk 0:03:04.5]} 5... b5
{[%clk 0:02:58.4]} 6. Bc2 {[%clk 0:03:05.1]} 6... Bb7 {[%clk 0:02:58.4]} 7. O-O
{[%clk 0:03:06.1]} 7... e5 {[%clk 0:02:47.2]} 8. Re1 {[%clk 0:03:03.8]} 8...
Ngf6 {[%clk 0:02:44.1]} 9. d4 {[%clk 0:02:59.8]} 9... Be7 {[%clk 0:02:42.8]} 10.
a3 {[%clk 0:02:58.4]} 10... O-O {[%clk 0:02:39.4]} 11. d5 {[%clk 0:02:57.3]}
11... c4 {[%clk 0:02:29.4]} 12. Nbd2 {[%clk 0:02:58.4]} 12... Nc5 {[%clk
0:02:29.3]} 13. Nf1 {[%clk 0:03:00]} 13... Re8 {[%clk 0:02:24.1]} 14. h3 {[%clk
0:02:58.8]} 14... Bf8 {[%clk 0:02:22.9]} 15. g4 {[%clk 0:02:59.9]} 15... a5
{[%clk 0:02:06.7]} 16. Ng3 {[%clk 0:02:59.7]} 16... g6 {[%clk 0:01:51.9]} 17.
Kg2 {[%clk 0:02:59.4]} 17... Kh8 {[%clk 0:01:51.2]} 18. Rh1 {[%clk 0:03:00.3]}
18... Qd7 {[%clk 0:01:36.6]} 19. Be3 {[%clk 0:02:57.2]} 19... Ra6 {[%clk
0:01:02.7]} 20. g5 {[%clk 0:02:54.1]} 20... Ng8 {[%clk 0:01:03.4]} 21. h4 {[%clk
0:02:55.1]} 21... b4 {[%clk 0:00:54.2]} 22. axb4 {[%clk 0:02:55.2]} 22... axb4
{[%clk 0:00:56.1]} 23. Rxa6 {[%clk 0:02:54.1]} 23... Bxa6 {[%clk 0:00:53.3]} 24.
Bxc5 {[%clk 0:02:33.3]} 24... dxc5 {[%clk 0:00:53.7]} 25. Ba4 {[%clk 0:02:33.8]}
25... Bb5 {[%clk 0:00:53.2]} 26. Bxb5 {[%clk 0:02:35.2]} 26... Qxb5 {[%clk
0:00:55.1]} 27. h5 {[%clk 0:02:35.8]} 27... Bd6 {[%clk 0:00:47.7]} 28. Nh4
{[%clk 0:02:27.2]} 28... Ne7 {[%clk 0:00:46.3]} 29. hxg6 {[%clk 0:02:23.9]}
29... fxg6 {[%clk 0:00:46.4]} 30. Nxg6+ {[%clk 0:02:19.1]} 30... Nxg6 {[%clk
0:00:47.2]} 31. Rxh7+ {[%clk 0:02:05.5]} 31... Kxh7 {[%clk 0:00:47.2]} 32. Qh5+
{[%clk 0:02:05.8]} 32... Kg8 {[%clk 0:00:37.3]} 33. Qxg6+ {[%clk 0:02:06.6]}
33... Kh8 {[%clk 0:00:36.7]} 34. Qh6+ {[%clk 0:01:50.1]} 34... Kg8 {[%clk
0:00:37]} 35. Nh5 {[%clk 0:01:48.4]} 35... Bf8 {[%clk 0:00:21.6]} 36. Qg6+
{[%clk 0:01:47.9]} 36... Kh8 {[%clk 0:00:21.4]} 37. Nf6 {[%clk 0:01:49.1]} 1-0

[Event "*** Qualifier 2: Titled Tuesday 3|2 Blitz"]
[Site "Chess.com"]
[Date "2017.04.11"]
[Round "7"]
[White "Konavets"]
[Black "Kacparov"]
[Result "0-1"]
[WhiteElo "2598"]
[BlackElo "2615"]
[TimeControl "180+2"]
[EndTime "14:38:47 PDT"]
[Termination "Kacparov won by resignation"]

1. e4 {[%clk 0:03:02]} 1... c5 {[%clk 0:03:00.6]} 2. Nf3 {[%clk 0:03:02]} 2...
Nc6 {[%clk 0:03:01.8]} 3. Bb5 {[%clk 0:03:02.5]} 3... g6 {[%clk 0:03:00.4]} 4.
O-O {[%clk 0:02:59]} 4... Bg7 {[%clk 0:03:01.1]} 5. Re1 {[%clk 0:03:00.4]} 5...
d6 {[%clk 0:02:44.9]} 6. c3 {[%clk 0:02:58.1]} 6... Bg4 {[%clk 0:02:32.9]} 7. h3
{[%clk 0:02:58.7]} 7... Bxf3 {[%clk 0:02:34]} 8. Qxf3 {[%clk 0:03:00.5]} 8...
Rc8 {[%clk 0:02:35]} 9. d3 {[%clk 0:03:00.5]} 9... a6 {[%clk 0:02:35.5]} 10. Ba4
{[%clk 0:02:58.7]} 10... Nf6 {[%clk 0:02:36.5]} 11. Be3 {[%clk 0:02:59]} 11...
O-O {[%clk 0:02:34.5]} 12. Nd2 {[%clk 0:03:00.1]} 12... b5 {[%clk 0:02:35.3]}
13. Bb3 {[%clk 0:02:56.4]} 13... e6 {[%clk 0:02:27.7]} 14. Qe2 {[%clk
0:02:54.3]} 14... Re8 {[%clk 0:02:22.5]} 15. Rac1 {[%clk 0:02:48.4]} 15... Qb6
{[%clk 0:02:22.8]} 16. Nf3 {[%clk 0:02:42.4]} 16... d5 {[%clk 0:02:21.4]} 17. e5
{[%clk 0:02:37.1]} 17... Nd7 {[%clk 0:02:20.8]} 18. d4 {[%clk 0:02:38]} 18...
cxd4 {[%clk 0:02:21.4]} 19. cxd4 {[%clk 0:02:39.9]} 19... Na5 {[%clk 0:02:18.1]}
20. Nh2 {[%clk 0:02:40.7]} 20... Nxb3 {[%clk 0:02:15.3]} 21. axb3 {[%clk
0:02:42.6]} 21... f5 {[%clk 0:02:12.6]} 22. exf6 {[%clk 0:02:41.4]} 22... Nxf6
{[%clk 0:02:13.2]} 23. Ng4 {[%clk 0:02:42]} 23... Nxg4 {[%clk 0:02:10.4]} 24.
Qxg4 {[%clk 0:02:43.9]} 24... Rxc1 {[%clk 0:01:59.7]} 25. Rxc1 {[%clk
0:02:43.6]} 25... Qd6 {[%clk 0:02:00]} 26. Bf4 {[%clk 0:02:40.8]} 26... Qb4
{[%clk 0:01:37.4]} 27. Be3 {[%clk 0:02:17.4]} 27... Qd6 {[%clk 0:01:11.3]} 28.
h4 {[%clk 0:01:53.6]} 28... e5 {[%clk 0:00:37.4]} 29. Rc8 {[%clk 0:01:35.1]}
29... Qf8 {[%clk 0:00:37.5]} 30. Rc5 {[%clk 0:01:20.2]} 30... exd4 {[%clk
0:00:36.3]} 31. Bxd4 {[%clk 0:01:21.2]} 31... Re4 {[%clk 0:00:27.7]} 32. Qd7
{[%clk 0:01:21.9]} 32... Bxd4 {[%clk 0:00:25]} 33. Rc8 {[%clk 0:01:16]} 33...
Bxf2+ {[%clk 0:00:25.5]} 34. Kh2 {[%clk 0:01:14.7]} 34... Rxh4+ {[%clk
0:00:25.8]} 0-1

[Event "*** Qualifier 2: Titled Tuesday 3|2 Blitz"]
[Site "Chess.com"]
[Date "2017.04.11"]
[Round "7"]
[White "dhanushbharadwaj"]
[Black "Spartakus1975"]
[Result "0-1"]
[WhiteElo "2332"]
[BlackElo "2541"]
[TimeControl "180+2"]
[EndTime "14:38:48 PDT"]
[Termination "Spartakus1975 won by resignation"]

1. Nf3 {[%clk 0:03:02]} 1... d5 {[%clk 0:02:59.3]} 2. c4 {[%clk 0:03:02.4]} 2...
c6 {[%clk 0:02:59.7]} 3. e3 {[%clk 0:03:03]} 3... Nf6 {[%clk 0:03:00.8]} 4. Nc3
{[%clk 0:03:03.4]} 4... a6 {[%clk 0:03:00.9]} 5. b3 {[%clk 0:03:04.1]} 5... Bg4
{[%clk 0:03:00.8]} 6. Bb2 {[%clk 0:03:03.9]} 6... Nbd7 {[%clk 0:03:01.9]} 7. h3
{[%clk 0:03:03.4]} 7... Bh5 {[%clk 0:03:02.3]} 8. Be2 {[%clk 0:03:00.7]} 8... e5
{[%clk 0:03:01.7]} 9. cxd5 {[%clk 0:03:00.3]} 9... cxd5 {[%clk 0:03:02.4]} 10.
O-O {[%clk 0:03:01.2]} 10... Bd6 {[%clk 0:03:02.4]} 11. Rc1 {[%clk 0:02:40.5]}
11... O-O {[%clk 0:03:01.9]} 12. d4 {[%clk 0:02:17.5]} 12... e4 {[%clk
0:02:58.3]} 13. Nd2 {[%clk 0:02:18.8]} 13... Bg6 {[%clk 0:02:53.3]} 14. a3
{[%clk 0:02:11.4]} 14... Qe7 {[%clk 0:02:53.1]} 15. b4 {[%clk 0:02:05]} 15...
Rac8 {[%clk 0:02:51.7]} 16. Nb3 {[%clk 0:02:04]} 16... Bb8 {[%clk 0:02:50.6]}
17. Nc5 {[%clk 0:02:00.4]} 17... Qd6 {[%clk 0:02:48.1]} 18. g3 {[%clk
0:02:00.6]} 18... Bf5 {[%clk 0:02:47.6]} 19. Kg2 {[%clk 0:01:29.4]} 19... h5
{[%clk 0:02:42]} 20. Nxb7 {[%clk 0:01:25.1]} 20... Qe6 {[%clk 0:02:42.3]} 21.
Rh1 {[%clk 0:01:22.8]} 21... g6 {[%clk 0:02:34.7]} 22. Nc5 {[%clk 0:01:22.6]}
22... Qd6 {[%clk 0:02:32.3]} 23. Nxd7 {[%clk 0:01:19.3]} 23... Bxd7 {[%clk
0:02:33.2]} 24. Qb3 {[%clk 0:01:11.4]} 24... h4 {[%clk 0:02:31.1]} 25. g4 {[%clk
0:01:06.3]} 25... Be6 {[%clk 0:02:32.2]} 26. Qa4 {[%clk 0:01:03.8]} 26... Nh7
{[%clk 0:02:23]} 27. Qxa6 {[%clk 0:00:54]} 27... Qe7 {[%clk 0:02:20]} 28. Nxd5
{[%clk 0:00:49.6]} 28... Qg5 {[%clk 0:02:10.6]} 29. Nc3 {[%clk 0:00:35.9]} 29...
Nf6 {[%clk 0:02:11.3]} 30. Qb7 {[%clk 0:00:28.6]} 30... Rxc3 {[%clk 0:02:09.4]}
31. Bxc3 {[%clk 0:00:26.9]} 31... Nd5 {[%clk 0:02:08.5]} 32. Bd2 {[%clk
0:00:15.3]} 32... f5 {[%clk 0:02:09.7]} 33. Qc6 {[%clk 0:00:14]} 33... Bf7
{[%clk 0:02:04.2]} 34. Kf1 {[%clk 0:00:07.1]} 34... f4 {[%clk 0:02:03.5]} 35.
Ke1 {[%clk 0:00:05.8]} 35... fxe3 {[%clk 0:01:59.8]} 36. fxe3 {[%clk 0:00:07.2]}
36... Bg3+ {[%clk 0:01:58.3]} 37. Kd1 {[%clk 0:00:08.2]} 37... Nxe3+ {[%clk
0:01:59.5]} 38. Bxe3 {[%clk 0:00:09.4]} 38... Qxe3 {[%clk 0:02:00.5]} 39. Qc3
{[%clk 0:00:11]} 39... Bb3+ {[%clk 0:01:59.7]} 40. Qxb3+ {[%clk 0:00:05.5]}
40... Qxb3+ {[%clk 0:02:00.5]} 0-1

[Event "*** Qualifier 2: Titled Tuesday 3|2 Blitz"]
[Site "Chess.com"]
[Date "2017.04.11"]
[Round "7"]
[White "chesstatour"]
[Black "andreimacovei2000"]
[Result "0-1"]
[WhiteElo "1947"]
[BlackElo "2393"]
[TimeControl "180+2"]
[EndTime "14:38:51 PDT"]
[Termination "andreimacovei2000 won on time"]

1. c4 {[%clk 0:03:02]} 1... c5 {[%clk 0:02:56.4]} 2. Nc3 {[%clk 0:03:00.6]} 2...
Nc6 {[%clk 0:02:57.2]} 3. Nf3 {[%clk 0:03:02.2]} 3... g6 {[%clk 0:02:48.4]} 4.
g3 {[%clk 0:03:00.3]} 4... Bg7 {[%clk 0:02:48.9]} 5. Bg2 {[%clk 0:03:01.9]} 5...
e6 {[%clk 0:02:50.3]} 6. O-O {[%clk 0:03:01]} 6... Nge7 {[%clk 0:02:50.8]} 7. d3
{[%clk 0:02:59.4]} 7... O-O {[%clk 0:02:50.5]} 8. Rb1 {[%clk 0:02:56.9]} 8... d5
{[%clk 0:02:50.1]} 9. cxd5 {[%clk 0:02:23.9]} 9... exd5 {[%clk 0:02:52]} 10. Na4
{[%clk 0:02:24.6]} 10... b6 {[%clk 0:02:44.7]} 11. Be3 {[%clk 0:02:14.9]} 11...
d4 {[%clk 0:02:43.4]} 12. Bd2 {[%clk 0:02:05.6]} 12... Be6 {[%clk 0:02:38]} 13.
a3 {[%clk 0:01:50.6]} 13... Ba2 {[%clk 0:02:37.4]} 14. Ra1 {[%clk 0:01:39.3]}
14... Bd5 {[%clk 0:02:38]} 15. b4 {[%clk 0:01:19.1]} 15... c4 {[%clk 0:02:31.5]}
16. dxc4 {[%clk 0:01:14]} 16... Bxc4 {[%clk 0:02:31.7]} 17. Rc1 {[%clk
0:01:09.8]} 17... Bd5 {[%clk 0:02:30.1]} 18. b5 {[%clk 0:01:04.1]} 18... Ne5
{[%clk 0:02:29.2]} 19. Bb4 {[%clk 0:00:47.6]} 19... Re8 {[%clk 0:02:28.2]} 20.
Nxd4 {[%clk 0:00:37.4]} 20... Bxg2 {[%clk 0:02:26.2]} 21. Kxg2 {[%clk 0:00:38]}
21... Nd5 {[%clk 0:02:26.2]} 22. Nc6 {[%clk 0:00:31]} 22... Nxc6 {[%clk
0:02:25.3]} 23. bxc6 {[%clk 0:00:24.7]} 23... Qg5 {[%clk 0:02:24.7]} 24. h4
{[%clk 0:00:17.6]} 24... Qg4 {[%clk 0:02:24.8]} 25. Qxd5 {[%clk 0:00:15.8]}
25... Rxe2 {[%clk 0:02:15.3]} 26. Qf3 {[%clk 0:00:15.5]} 26... Qe6 {[%clk
0:02:14.4]} 27. Nc3 {[%clk 0:00:13.7]} 27... Re5 {[%clk 0:02:13]} 28. c7 {[%clk
0:00:10.6]} 28... Rc8 {[%clk 0:02:13.3]} 29. Nb5 {[%clk 0:00:10.9]} 29... Rxb5
{[%clk 0:02:13]} 30. Rfe1 {[%clk 0:00:08.7]} 30... Re5 {[%clk 0:02:11.5]} 31.
Rxe5 {[%clk 0:00:09.2]} 31... Bxe5 {[%clk 0:02:10.6]} 32. Qb7 {[%clk 0:00:08.3]}
32... Qd7 {[%clk 0:02:01.4]} 33. Qxa7 {[%clk 0:00:07.7]} 33... Rxc7 {[%clk
0:02:00.1]} 34. Rxc7 {[%clk 0:00:06.7]} 34... Qxc7 {[%clk 0:01:59.8]} 35. Qa8+
{[%clk 0:00:05.1]} 35... Kg7 {[%clk 0:02:00.4]} 36. Qf8+ {[%clk 0:00:04.9]}
36... Kf6 {[%clk 0:02:01.7]} 37. Qh8+ {[%clk 0:00:04.1]} 37... Kf5 {[%clk
0:02:01.3]} 38. Qxh7 {[%clk 0:00:03.9]} 38... Qb7+ {[%clk 0:02:01.7]} 39. Kg1
{[%clk 0:00:03.8]} 39... Kg4 {[%clk 0:02:01.4]} 40. Qh6 {[%clk 0:00:03.3]} 40...
Qe4 {[%clk 0:01:55.6]} 41. Qg5+ {[%clk 0:00:03.3]} 41... Kf3 {[%clk 0:01:57]}
0-1

[Event "*** Qualifier 2: Titled Tuesday 3|2 Blitz"]
[Site "Chess.com"]
[Date "2017.04.11"]
[Round "7"]
[White "afgano29"]
[Black "amaidel"]
[Result "1-0"]
[WhiteElo "2384"]
[BlackElo "2439"]
[TimeControl "180+2"]
[EndTime "14:38:56 PDT"]
[Termination "afgano29 won by resignation"]

1. e4 {[%clk 0:00:12.3]} 1... e6 {[%clk 0:03:02]} 2. d4 {[%clk 0:00:12.8]} 2...
d5 {[%clk 0:03:02.9]} 3. Nc3 {[%clk 0:00:14.4]} 3... Bb4 {[%clk 0:03:03.1]} 4.
e5 {[%clk 0:00:15.6]} 4... Ne7 {[%clk 0:03:04.6]} 5. Nf3 {[%clk 0:00:15.7]} 5...
O-O {[%clk 0:03:02.4]} 6. Bd3 {[%clk 0:00:16]} 6... h6 {[%clk 0:03:02.5]} 7. Bd2
{[%clk 0:00:15.6]} 7... b6 {[%clk 0:03:01.4]} 8. Qc1 {[%clk 0:00:16.8]} 8...
Bxc3 {[%clk 0:03:00.5]} 9. bxc3 {[%clk 0:00:16.7]} 9... Ng6 {[%clk 0:02:57.3]}
10. h4 {[%clk 0:00:16.9]} 10... f5 {[%clk 0:02:47.3]} 11. h5 {[%clk 0:00:16.3]}
11... Ne7 {[%clk 0:02:47.3]} 12. Rh3 {[%clk 0:00:16.9]} 12... Qe8 {[%clk
0:02:45.4]} 13. Rg3 {[%clk 0:00:16.7]} 13... Qxh5 {[%clk 0:02:44.5]} 14. Bxh6
{[%clk 0:00:16.7]} 14... Rf7 {[%clk 0:02:30]} 15. Bg5 {[%clk 0:00:16.9]} 15...
Qh1+ {[%clk 0:02:26]} 16. Ke2 {[%clk 0:00:17.6]} 16... Qxc1 {[%clk 0:02:26.6]}
17. Rxc1 {[%clk 0:00:19.5]} 17... Ba6 {[%clk 0:02:25]} 18. Rh3 {[%clk
0:00:20.2]} 18... Bxd3+ {[%clk 0:02:24.5]} 19. cxd3 {[%clk 0:00:22.1]} 19... Ng6
{[%clk 0:02:13.9]} 20. Rch1 {[%clk 0:00:21.9]} 20... Nc6 {[%clk 0:02:12.5]} 21.
Nh4 {[%clk 0:00:21.9]} 21... Nf8 {[%clk 0:02:08.8]} 22. f4 {[%clk 0:00:20.2]}
22... g6 {[%clk 0:02:00.3]} 23. Nf3 {[%clk 0:00:16.5]} 23... Rh7 {[%clk
0:01:59.1]} 24. Bf6 {[%clk 0:00:17.6]} 24... Rxh3 {[%clk 0:01:28.6]} 25. Rxh3
{[%clk 0:00:19.5]} 25... Kf7 {[%clk 0:01:29.8]} 26. Ng5+ {[%clk 0:00:17.3]}
26... Ke8 {[%clk 0:01:30.9]} 27. Rh8 {[%clk 0:00:16]} 27... Rb8 {[%clk 0:01:18]}
28. Bg7 {[%clk 0:00:12.2]} 28... Ke7 {[%clk 0:01:17]} 29. Bxf8+ {[%clk 0:00:13]}
29... Rxf8 {[%clk 0:01:18.9]} 30. Rxf8 {[%clk 0:00:14.5]} 30... Kxf8 {[%clk
0:01:20.6]} 31. Nxe6+ {[%clk 0:00:16]} 31... Ke7 {[%clk 0:01:22.2]} 32. Nxc7
{[%clk 0:00:17.9]} 32... Kd7 {[%clk 0:01:22.6]} 33. Nxd5 {[%clk 0:00:18.9]}
33... Nd8 {[%clk 0:01:24.5]} 34. Nf6+ {[%clk 0:00:19.9]} 34... Ke6 {[%clk
0:01:24.8]} 35. d5+ {[%clk 0:00:21.1]} 35... Kf7 {[%clk 0:01:26.1]} 36. d4
{[%clk 0:00:22.5]} 36... Nb7 {[%clk 0:01:27]} 37. c4 {[%clk 0:00:23.4]} 37...
Na5 {[%clk 0:01:28.9]} 38. Kd3 {[%clk 0:00:24.8]} 38... a6 {[%clk 0:01:30]} 39.
c5 {[%clk 0:00:26.1]} 39... b5 {[%clk 0:01:31.9]} 40. c6 {[%clk 0:00:26.9]}
40... Nc4 {[%clk 0:01:33.3]} 41. c7 {[%clk 0:00:27.7]} 41... Nb6 {[%clk
0:01:34.2]} 42. d6 {[%clk 0:00:29]} 1-0